Cogmind - Beta 15 @@@ ROGUE MODE // 2025.08.31 @ 00:04:18 // Winter2019/RPGLIKE Player: Toaster Result: Destroyed by P-60 Hacker with Shock Rifle Performance ------------- Evolutions (0) 0 Regions Visited (3) 600 Robots Destroyed (44) 220 Value Destroyed (1248) 1248 Prototype IDs (16) 320 Alien Tech Used (0) 0 Bonus (113) 113 TOTAL SCORE: 2501 Bonus ------- Follower Combat Kills 113 Cogmind --------- Core Integrity 0/1000 Matter 300/300 Energy 426/430 System Corruption 6% Temperature Cool (10) Movement Core (200) Ox3 Location -9/Recycling Parts ------- > --- POWER (2) -------- Reinforced Ion Engine Reinforced Ion Engine > --- PROPULSION (3+3) - Arachnoskeleton > --- UTILITY (2) ------ V3-11A's Pendant > --- WEAPON (3) ------- EM Shotgun EM Shotgun > --- INVENTORY (1) ---- (None) Peak State ------------ > --- POWER ------------ Reinforced Ion Engine Reinforced Ion Engine > --- PROPULSION ------- Arachnoskeleton > --- UTILITY ---------- Light Armor Plating V3-11A's Pendant > --- WEAPON ----------- EM Shotgun EM Shotgun EM Shotgun > --- INVENTORY -------- (None) [Rating: 35] Favorites ----------- Power Improved Ion Engine Engine Improved Ion Engine Propulsion Aluminum Leg Leg Aluminum Leg Utility Medium Armor Plating Device V3-11A's Pendant Processor Improved Targeting Computer Protection Medium Armor Plating Weapon EM Shotgun Energy Gun EM Shotgun Special Weapon Mining Laser Build | -11 -10 -10 -9 ------- Run | Yrd Mat Sub Rec Slots Evolved 6 | 2 3 . 1 Power 1 | . . . 1 Propulsion 2 | 1 1 . . Utility 1 | . 1 . . Weapon 2 | 1 1 . . Parts Attached 20 | 5 9 3 3 Power 4 | 1 1 . 2 Engine 4 | 1 1 . 2 Core . | . . . . Reactor . | . . . . Propulsion 4 | 2 1 1 . Treads . | . . . . Leg 4 | 2 1 1 . Wheel . | . . . . Hover . | . . . . Flight . | . . . . Utility 6 | . 4 1 1 Device 1 | . . 1 . Storage . | . . . . Processor 2 | . 2 . . Hackware . | . . . . Protection 3 | . 2 . 1 Artifact . | . . . . Weapon 6 | 2 3 1 . Energy Gun 5 | 2 3 . . Energy Cannon . | . . . . Ballistic Gun . | . . . . Ballistic Cannon . | . . . . Launcher . | . . . . Special Weapon 1 | . . 1 . Impact Weapon . | . . . . Slashing Weapon . | . . . . Piercing Weapon . | . . . . Special Melee Weapon . | . . . . Unidentified Prototypes 1 | . . 1 . Parts Lost 4 | . . 1 3 Power . | . . . . Propulsion . | . . . . Utility 3 | . . 1 2 Weapon 1 | . . . 1 Highest Loss Streak 2 | . . 1 2 To Critical Strikes . | . . . . Average Backups . | . . . . Power . | . . . . Propulsion . | . . . . Utility . | . . . . Weapon . | . . . . Tool/Special . | . . . . Unused Backups . | . . . . Power . | . . . . Propulsion . | . . . . Utility . | . . . . Weapon . | . . . . Tool/Special . | . . . . Average Slot Usage (%) 80 | . 93 80 56 Engine 10 | . 13 9 9 Leg 21 | . 29 21 7 Device 2 | . . 5 . Processor 3 | . 9 . . Protection 11 | . 7 13 12 Energy Gun 27 | . 32 24 24 Special Weapon 2 | . . 4 . Peak Build Rating 35 | 5 15 34 35 Average Rating 20 | 3 10 23 32 On Entrance 13 | . 5 15 34 Naked Turns . | . . . . Heaviest Build 39 | 9 30 30 39 Greatest Support 55 | 20 35 55 55 Greatest Overweight (x) 2 | 2 . 2 . Average Overweight (x) . | . . . . Largest Inventory Capacity 1 | 1 1 1 1 Average Capacity . | . 1 1 1 Most Carried 1 | . 1 1 1 Average Carried . | . . . . Final Capacity 1 | 1 1 1 1 Final Carried 1 | . 1 . . Class Distribution -------------------- 49% | Gunner 28% | Tank 21% | Mutant Dominant Class ---------------- Mutant | -10/Materials Gunner | -10/Subcaves Tank | -9/Recycling Resources | -11 -10 -10 -9 ----------- Run | Yrd Mat Sub Rec Matter Collected 534 | 250 98 140 46 Remotely . | . . . . Salvage Created 1626 | . 972 570 84 Parts 95 | . 59 33 3 Haulers Intercepted . | . . . . Recyclers Shooed 1 | . . . 1 Parts Field Recycled . | . . . . Retrieved Matter . | . . . . Parts Self-Destructed 19 | . . 19 . Prevented 2 | . . 2 . Kills | -11 -10 -10 -9 ------- Run | Yrd Mat Sub Rec Combat Hostiles Destroyed 34 | . 21 12 1 Guns 27 | . 18 8 1 AOE 3 | . 2 1 . Classes Destroyed 11 | . 7 3 1 Worker 1 | . 1 . . Builder 2 | . 2 . . Recycler 2 | . 2 . . Operator 1 | . 1 . . Turret 2 | . . 2 . Watcher 2 | . 2 . . Swarmer 6 | . 3 3 . Grunt 19 | . 18 1 . Sentry 1 | . . . 1 Artisan 2 | . . 2 . Subdweller 8 | . . 8 . Best Kill Streak 8 | . 8 3 1 Combat Bots Only 7 | . 7 3 1 Max Kills in Single Turn 2 | . 2 2 1 Gunslinging 1 | . 1 . . Exploded 1 | . 1 1 . Melee . | . . . . Uniques/NPCs Destroyed . | . . . . Combat | -11 -10 -10 -9 -------- Run | Yrd Mat Sub Rec Hostile Shots Fired 180 | . 28 111 41 Missed 61 | . 10 46 5 Hits 119 | . 18 65 36 Projectile 119 | . 18 65 36 AOE 7 | . . 3 4 Critical Strikes 5 | . . 1 4 Part Disruptions 2 | . . . 2 Damage Taken 2150 | . 276 1221 653 Core 1547 | . 226 814 507 Absorbed by Shields . | . . . . Redirected to Core 1253 | . 165 692 396 Core Remaining (%) 100 | 100 . . . Volleys Fired 136 | . 32 95 9 Largest 3 | . 3 3 3 Hottest 190 | . 135 190 135 Shots Fired 255 | . 70 160 25 Gun 193 | . 70 98 25 Cannon . | . . . . Launcher . | . . . . Special 62 | . . 62 . Kinetic . | . . . . Thermal 62 | . . 62 . Explosive . | . . . . Electromagnetic 193 | . 70 98 25 Robot Hit Streak 40 | . 29 40 10 Robot Miss Streak 3 | . 2 3 2 Penetration Max . | . . . . Secondary Targets 4 | . 3 1 . Max Gunslinging Chain 1 | . 1 1 . Shots Hit Robots 169 | . 61 85 23 Core Hits 103 | . 51 38 14 Critical Kills . | . . . . Critical Parts Destroyed . | . . . . Critical Strikes . | . . . . Melee Attacks . | . . . . Impact . | . . . . Slashing . | . . . . Piercing . | . . . . Sneak Attacks . | . . . . Combat Hostiles . | . . . . Follow-up Attacks . | . . . . Damage Inflicted 2759 | . 1224 1280 255 Guns 2318 | . 953 1164 201 Cannons . | . . . . Explosions 307 | . 191 116 . Melee . | . . . . Ramming 134 | . 80 . 54 Kinetic . | . . . . Thermal 256 | . 140 116 . Explosive 51 | . 51 . . Electromagnetic 2318 | . 953 1164 201 Impact . | . . . . Slashing . | . . . . Piercing . | . . . . Highest Corruption 6 | . . . 6 Average Corruption 3 | . . . 3 Corruption Purged . | . . . . Corruption Blocked . | . . . . Effects 1 | . . . 1 Weapon Failures 1 | . . . 1 Overload Shots . | . . . . Overflow Damage . | . . . . Projectiles . | . . . . Explosions . | . . . . Melee . | . . . . Knockbacks . | . . . . Impact . | . . . . Kinetic . | . . . . Secondary . | . . . . Self-Inflicted Damage 128 | . 73 52 3 Shots 3 | . 2 1 . Rammed 3 | . . . 3 Targets Rammed 21 | . 11 . 10 Kicked 18 | . 11 . 7 Crushed . | . . . . Highest Temperature 285 | . 285 36 213 Average Temperature 62 | . 63 17 77 Received Heat Transfer 381 | . 108 273 . Siege Activations . | . . . . Martial Activations . | . . . . Shielding Activations . | . . . . Robots Disrupted 1 | . 1 . . Combat Hostiles . | . . . . Robots Corrupted 7 | . 2 5 . Combat Hostiles 4 | . 1 3 . Parts Fried 14 | . 3 9 2 Impact Corruptions . | . . . . Robots Melted . | . . . . Combat Hostiles . | . . . . Parts Melted . | . . . . Heat Transferred 250 | . 200 50 . Parts Sabotaged . | . . . . Parts Stolen . | . . . . Parts Stripped . | . . . . Power Chain Reactions 6 | . 4 2 . Alert | -11 -10 -10 -9 ------- Run | Yrd Mat Sub Rec Maximum Alert Level 1 | . 1 . . Low Security (%) 95 | 100 92 . 100 Level 1 4 | . 7 . . Level 2 . | . . . . Level 3 . | . . . . Level 4 . | . . . . Level 5 . | . . . . High Security . | . . . . Max Security . | . . . . Peak Influence 222 | . 222 . 100 Initial 52 | . . . 52 Average 62 | . 81 . 27 Influence Increases 1451 | . 704 461 286 Destroy 0b10 Robot/C 660 | . 420 180 60 Destroy 0b10 Robot/NC 40 | . 40 . . Destroy Leader 104 | . 94 10 . Allied During Kill 43 | . . 31 12 Successful Hack 18 | . 14 . 4 Select Force Hacks 240 | . 60 . 180 Disable Machine 30 | . 30 . . Destroy Structure 46 | . 46 . . Partial Spotted 15 | . . . 15 Lose Combat Pursuer 255 | . . 240 15 Influence Decreases 1451 | . 518 538 395 Entered New Map 147 | . . 90 57 Time Decay 1190 | . 518 438 234 Lost Part 35 | . . 10 25 Lost Ally 79 | . . . 79 Squads Dispatched 6 | . 6 . . Investigation 3 | . 3 . . Extermination . | . . . . Reinforcement 3 | . 3 . . Assault . | . . . . Garrison . | . . . . Intercept . | . . . . Searches Triggered . | . . . . Construction Impeded . | . . . . Haulers Reinforced . | . . . . Active Scanning Responses . | . . . . Cargo Convoy Interrupts . | . . . . Stealth | -11 -10 -10 -9 --------- Run | Yrd Mat Sub Rec Distress Signals 2 | . 2 . . Communications Jammed . | . . . . Distress Signals . | . . . . Times Spotted 73 | . 29 34 10 Peak Tracking Total 6 | . 5 4 6 Tactical Retreats 3 | . . 2 1 Traps | -11 -10 -10 -9 ------- Run | Yrd Mat Sub Rec Traps Triggered 4 | . 2 2 . Indirectly . | . . . . Trap Hack Attempts . | . . . . Triggered . | . . . . Disarmed . | . . . . Reprogrammed . | . . . . Reused . | . . . . Traps Extracted . | . . . . Installed . | . . . . Triggered . | . . . . Machines | -11 -10 -10 -9 ---------- Run | Yrd Mat Sub Rec Machines Disabled 5 | . 2 3 . Max in Single Turn 1 | . 1 1 . Machines Repaired . | . . . . Machines Dismantled . | . . . . Machines Sabotaged . | . . . . Overloaded Fab Kills . | . . . . Hacking | -11 -10 -10 -9 --------- Run | Yrd Mat Sub Rec Machines Accessed 21 | . 6 3 12 Terminals 10 | . 4 . 6 Fabricators . | . . . . Repair Stations . | . . . . Recycling Units 8 | . 2 . 6 Scanalyzers . | . . . . Garrison Access . | . . . . Total Hacks 37 | . 10 3 24 Successful 29 | . 8 3 18 Failed 8 | . 2 . 6 Catastrophic . | . . . . Database Lockouts . | . . . . Manual 23 | . 8 . 15 Terminals 18 | . 7 . 11 Fabricators . | . . . . Repair Stations . | . . . . Recycling Units 16 | . 3 . 13 Scanalyzers . | . . . . Garrison Access . | . . . . Terminal Hacks 6 | . 2 3 1 Record 1 | . . 1 . Robot Analysis 1 | . . . 1 Prototype ID Bank 2 | . 2 . . Open Door 1 | . . 1 . Proto ID Catalog 1 | . . 1 . Fabricator Hacks . | . . . . Repair Station Hacks . | . . . . Recycling Unit Hacks 7 | . . . 7 Report Inventory 6 | . . . 6 Retrieve Components 1 | . . . 1 Scanalyzer . | . . . . Garrison Access Hacks . | . . . . Unauthorized Hacks 16 | . 6 . 10 Terminals 8 | . 4 . 4 Botnet 8 | . 4 . 4 Fabricators . | . . . . Repair Stations . | . . . . Recycling Units 8 | . 2 . 6 Tunnel 8 | . 2 . 6 Scanalyzers . | . . . . Garrison Access . | . . . . Data Cores Recovered . | . . . . Used . | . . . . Hacking Detections 6 | . 3 . 3 Full Trace Events . | . . . . Feedback Events . | . . . . Feedback Blocked . | . . . . Robot Schematics Acquired . | . . . . Robots Built . | . . . . Authchips . | . . . . Time . | . . . . Total Robot Build Rating . | . . . . Part Schematics Acquired . | . . . . Parts Built . | . . . . Authchips . | . . . . Time . | . . . . Total Part Build Rating . | . . . . Parts Repaired . | . . . . Time . | . . . . Parts Recycled . | . . . . Recycled Matter . | . . . . Retrieved Matter . | . . . . Retrieved Components 3 | . . . 3 Parts Scanalyzed . | . . . . Part Schematics Acquired . | . . . . Parts Damaged . | . . . . Bothacking | -11 -10 -10 -9 ------------ Run | Yrd Mat Sub Rec Used RIF Installer . | . . . . Robots Hacked . | . . . . Non-combat . | . . . . Combat . | . . . . Robot Hacks Applied . | . . . . Relay Couplers Released . | . . . . Fabnet Peak Effective % . | . . . . Robots Rewired . | . . . . Allies Hacked . | . . . . Hacks Repelled . | . . . . Allies | -11 -10 -10 -9 -------- Run | Yrd Mat Sub Rec Total Allies 4 | . . 4 . Largest Group 4 | . . 4 4 Highest-Rated Group 76 | . . 76 76 Highest-Rated Ally 19 | . . 19 19 Total Orders . | . . . . Ally Attacks 41 | . . 20 21 Total Damage 506 | . . 212 294 Kills 5 | . . 3 2 Allies Corrupted . | . . . . Allies Melted . | . . . . Intel | -11 -10 -10 -9 ------- Run | Yrd Mat Sub Rec Active Infowar (turns) . | . . . . Robot Analysis Total 1 | . . . 1 Derelict Logs Recovered . | . . . . Drone Launches . | . . . . Drone Recoveries . | . . . . Exploration | -11 -10 -10 -9 ------------- Run | Yrd Mat Sub Rec Turns Passed 5688 | 38 1895 2824 931 Spaces Moved 4561 | 29 1413 2161 958 Core 24 | 11 . 13 . Treads . | . . . . Legs 4537 | 18 1413 2148 958 Wheels . | . . . . Hover . | . . . . Flight . | . . . . Fastest Speed 50 | 50 120 90 90 Average Speed 106 | 107 120 104 90 Slowest Speed 150 | 150 120 150 90 Overloaded Moves . | . . . . Propulsion Burnouts . | . . . . Robots Hopped . | . . . . Potential Cave-ins . | . . . . Cave-ins Triggered . | . . . . Exploration Rate (%) 68 | 3 99 75 96 Regions Visited 3 Branch Regions 2 Pre-discovered Areas 8 | . 2 . 6 Known Exits Taken . | . . . . Unknown Exits Taken 3 | 1 1 1 . Scrap Searched 5 | . . 5 . Spaces Dug 5 | . . 5 . Terrain Destroyed 57 | . 44 13 . Melee . | . . . . Projectile 5 | . . 5 . AOE 52 | . 44 8 . Terrain Rammed . | . . . . Walls Destroyed . | . . . . Machines Disabled . | . . . . Actions | -11 -10 -10 -9 --------- Run | Yrd Mat Sub Rec Total 5047 | 33 1543 2469 1002 Wait 250 | . 53 178 19 Move 4558 | 28 1412 2160 958 Hop . | . . . . Pick Up 2 | . 2 . . Fast Attach 20 | 5 10 2 3 Attach 2 | . 1 . 1 Detach 5 | . 4 . 1 Swap 13 | . 1 12 . Drop 8 | . 3 4 1 Fire 136 | . 32 95 9 Melee . | . . . . Ram 3 | . . . 3 Kick 18 | . 11 . 7 Crush . | . . . . Escape Stasis . | . . . . Rewire . | . . . . Trap . | . . . . Miscellaneous 32 | . 14 18 . Route ------- -11/Scrapyard -10/Materials (discovered 5 exits: [*Mat x3] / [*Min] / *Sub) -10/Subcaves (discovered 3 exits: [*Mat] / *Rec / [*Scr]) -9/Recycling (discovered 1 exit: [*Fac]) History --------- Turn | Location | Event 2 | -11/Scrapyard | Upgraded with Propulsion slot (x1) 2 | -11/Scrapyard | Upgraded with Weapon slot (x1) 11 | -11/Scrapyard | Discovered new exit (range 15) 39 | -11/Scrapyard | Entered Materials 206 | -10/Materials | Destroyed 7 combat bots 249 | -10/Materials | Discovered new exit (range 9) 314 | -10/Materials | Build established: Mutant 427 | -10/Materials | Discovered new exit (range 7) 705 | -10/Materials | Discovered new exit (range 16) 738 | -10/Materials | Reached level 2 851 | -10/Materials | Upgraded with Utility slot (x1) 851 | -10/Materials | Upgraded with Weapon slot (x1) 1181 | -10/Materials | Discovered new exit (range 9) 1480 | -10/Materials | Discovered new exit (range 16) 1544 | -10/Materials | Build established: Gunner 1696 | -10/Materials | Reached level 3 1779 | -10/Materials | Upgraded with Propulsion slot (x1) 1934 | -10/Materials | Entered Subcaves 1935 | -10/Subcaves | Approached by a straggling Scientist 2168 | -10/Subcaves | Discovered new exit (range 10) 2188 | -10/Subcaves | Build established: Tank 2189 | -10/Subcaves | A Subdweller sparked back to life 2189 | -10/Subcaves | A Subdweller sparked back to life 2271 | -10/Subcaves | Discovered new exit (range 12) 2375 | -10/Subcaves | A swath of the cavern ceiling suddenly collapsed 2655 | -10/Subcaves | Shifting Twisted Machinery released Spk. Treads 2680 | -10/Subcaves | Shifting Twisted Machinery released Multitool 2891 | -10/Subcaves | Core integrity fell below 50% 2922 | -10/Subcaves | Core integrity fell below 20% 2964 | -10/Subcaves | Visited triangular shrine 2972 | -10/Subcaves | Found Prototype Device 2972 | -10/Subcaves | Identified V3-11A's Pendant 2977 | -10/Subcaves | Befriended Subdweller 3077 | -10/Subcaves | Befriended Subdweller 3143 | -10/Subcaves | Shifting Twisted Machinery released Sub. Monowheel 3225 | -10/Subcaves | Build established: Gunner 3312 | -10/Subcaves | Ambushed by angry Subdweller bent on revenge 3312 | -10/Subcaves | Befriended Subdweller 3417 | -10/Subcaves | Visited 4L-MR0's lab 3438 | -10/Subcaves | Found Arachnoskeleton 3440 | -10/Subcaves | Attached Arachnoskeleton, gained temporary slots: Propulsion x3 3677 | -10/Subcaves | Befriended Subdweller 3958 | -10/Subcaves | Scientist uncovered a shortcut to Scraptown 4032 | -10/Subcaves | Reached level 4 4758 | -10/Subcaves | Entered Recycling 4758 | -9/Recycling | Accompanied by 4 allies 4760 | -9/Recycling | Reached level 5 5023 | -9/Recycling | Discovered new exit (range 15) 5213 | -9/Recycling | Scanned before Scraplab entrance 5344 | -9/Recycling | Build established: Tank 5457 | -9/Recycling | Upgraded with Power slot (x1) 5650 | -9/Recycling | P-60 Hacker assimilated allied V3-11A 5678 | -9/Recycling | Befriended Subdweller 5689 | -9/Recycling | Destroyed by P-60 Hacker with Shock Rifle Last Messages --------------- 05668_ System corrupted: EM Shotgun failed to cycle. 05670_ P-60 Hacker resets P-60 Hacker, system corruption cleaned. 05672_ Kicked P-60 Hacker out of the way. 05674_ Acquired 10 matter. 05674_ Kicked P-60 Hacker. 05676_ Kicked P-60 Hacker out of the way. 05677_ Kicked P-60 Hacker. 05677_ V3-11A affixes Scrap Shield Fragment to Scrap Shield. 05678_ V3-11A: "The pendant says I should follow you." 05678_ P-60 Hacker fails to hack V3-11A. 05678_ V3-11A: "I hear you, but what does it all mean?!" 05678_ V3-11A destroyed. 05678_ Kicked P-60 Hacker out of the way. 05679_ Slammed into P-60 Hacker. 05683_ P-60 Hacker resets R-06 Scavenger, system corruption cleaned. 05684_ Slammed into P-60 Hacker. 05685_ Lgt. Armor Plating destroyed. 05686_ EM Shotgun destroyed. 05687_ P-60 Hacker destroyed. 05687_ R-06 Scavenger destroyed. Map ----- +----------------------------------------------------+ | ?# """""#???# #????????????### # """ | | ?# """""#???# #??????????????# # """ | | ?# """""#???# #??????????????# # | | ?# """ ????# #??????????????# ####+# | | ?# ??????# #??????????????# | | ?########??????## ##??????????######+###+####### | | ????????????????# #???????????# #???? | | ??????########### #???????????# #???? | | ??????# # #???????????# #???? | | ?????# + #???????????# #???? | | ??????# # #???????????# #???? | | ??????# # #???????????# #???? | | ??????# # ##??????????# #???? | | ??????# # # #########?# #???? | | ??????# # # #?# ???? | | ??????# # # #?# #?### | | ??????########### # #?# #?# | | ????????????????# # ] #?# #?# | | ????????????????# #% ! #?##############?# | | ????????????????# + ##???????????????# | | ????????????????# # r#???????????????# | | ??????????????### # #????????????????# | | ??????????????#"" ## ## /##???#####????????# | | ??????????????#"Y #] ] l##???#! !#????????# | | ??????????????#"" ! ] #####! !############ | | ??????????????## [%! @ !%* | | ????????????????# * % p! | | ???????????????# &%& [ r | | ???????????????## ##################### | | ????????????????#a % ###??????????????# | | ???????????????# b % d [##????????????????# T | | ???????????????## t #?????????????????# | | ????????????????# [ ag #?????????????????# | | ????????????????# [ p%g #?????????????????# | | ????????????????# #?????????????????# | | ????????????????# h #?????????????????# | | ????????????????#iu] ] #?????????????????# | | ????????????????###########?????????????????###### | | ?????????????????????????????????????????????????? | | ?????????????????????????????????????????????????? | | | | | | | | | | | | | | | | | | | | | +----------------------------------------------------+ Best States ------------- Heat Dissipation 43 Energy Generation 19 Energy Capacity 430 Matter Stores 300 Matter Capacity 300 Sight Range 16 Robot Scan Range 8 Terrain Scan Density 10 Armor Coverage 450 Evasion (%) 57 Targeting Accuracy 6 Item Schematics ----------------- None Robot Schematics ------------------ None Fabricated ------------ Nothing Repaired ---------- Nothing Alien Tech Used ----------------- None Achievements -------------- None Challenges ------------ None RPGLIKE | -11 -10 -10 -9 --------- Run | Yrd Mat Sub Rec Levels Raised 4 | . 2 1 1 XP Earned 10239 | 3000 3000 2007 2232 XP Spent 6490 | 2750 2760 480 500 Upgrades 26 | 6 11 8 1 Power Slot 1 | . . . 1 Propulsion Slot 2 | 1 1 . . Utility Slot 1 | . 1 . . Weapon Slot 2 | 1 1 . . Core Integrity 8 | . . 8 . Heat Dissipation 3 | . 3 . . Mass Support 1 | . 1 . . Inventory Capacity 1 | 1 . . . Sensor Range 4 | . 4 . . Ranged Accuracy 3 | 3 . . . Protomatter Created 372 | . 254 118 . Integrity Restored 608 | . 215 393 . Core 539 | . 146 393 . Parts 69 | . 69 . . Protomatter Decayed 257 | . 152 91 14 Game ------ Seed PlasmaAblativeWings Manual? 0 Play Time 00:44:33 Cumulative 131.8 hours Start 2025.08.30 @ 23:18:05 End 2025.08.31 @ 00:04:18 Sessions 1 Manual Loads 0 Difficulty Rogue Special Mode Winter2019/RPGLIKE Game No. 59 Rogue 55 Adventurer 4 Explorer 0 Win Type - Total 1 Types 1/0/0/0/0/0/0/0/0/0 Lore% 59 Gallery% 47 Achievement% 51 Wizard Run 0 Options --------- Layout 0 ASCII 0 Keyboard 0 Movement Arrows Keybinds 0 Fullscreen 2 Font 32/SmallcapsGlow Map View 88x55 Zoom Use 0% Tactical HUD 1 Map Filters NONE Filters NONE Steam 1 RUN: 8a3a5264-cf95-48a6-baf6-119245c02514